bitfinex/quotes_SOLUSD_20260102
["timestamp","ask_amount","ask_price","bid_price","bid_amount"]
[1767376442623,2.44059344,131.1,131.08,8.32564168]
[1767376442843,2.44059344,131.13,131.09,0.69681909]
[1767376443507,5.12742983,131.12,131.1,7.62776506]
[1767376443707,7.56802327,131.12,131.1,7.62776506]
[1767376443903,2.44059344,131.11,131.1,7.62776506]
[1767376444532,2.44059344,131.11,131.09,7.62812186]
[1767376444709,0.58036189,131.12,131.09,7.62812186]
[1767376445032,2.44059344,131.12,131.09,8.32494095]
[1767376446132,0.58522414,131.17,131.1,0.69681909]
[1767376446337,2.44059344,131.14,131.1,0.69681909]
[1767376447208,2.44059344,131.17,131.12,0.69681909]
[1767376447419,7.57047785,131.16,131.12,0.69681909]
[1767376447633,2.44059344,131.16,131.12,0.69681909]
[1767376448133,0.58036189,131.16,131.12,0.69681909]
[1767376448325,2.44059344,131.13,131.11,27.39196057]
[1767376448525,2.44059344,131.13,131.11,8.32400237]
[1767376448923,2.44059344,131.14,131.12,0.69681909]
[1767376449141,2.44059344,131.14,131.11,7.62718328]
[1767376449142,2.44059344,131.14,131.11,8.32400237]
[1767376449342,2.44059344,131.15,131.11,8.32400237]
[1767376449842,2.44059344,131.14,131.11,8.32400237]
[1767376451837,2.44059344,131.15,131.12,0.69681909]
[1767376453933,5.1309255,131.14,131.1,0.69681909]
[1767376454240,2.44059344,131.11,131.08,8.32551235]
[1767376454436,2.44059344,131.1,131.08,8.32551235]
[1767376454940,2.44059344,131.11,131.08,8.32551235]
[1767376455239,0.58522414,131.13,131.09,7.6283095]
[1767376455442,13.27147839,131.12,131.09,8.32512859]
[1767376455620,2.44059344,131.12,131.09,8.32512859]
[1767376455821,2.44059344,131.11,131.09,8.32512859]
[1767376456162,2.44059344,131.1,131.09,8.32512859]
[1767376456323,2.44059344,131.11,131.09,8.32512859]
[1767376457842,2.44059344,131.1,131.09,7.6283095]
[1767376458043,7.67395691,131.1,131.07,7.62926978]
[1767376458245,2.44059344,131.08,131.06,8.32676964]
[1767376458436,2.41059344,131.08,131.06,8.32676964]
[1767376459948,2.44059344,131.07,131.06,7.62995055]
[1767376460135,2.41059344,131.07,131.06,7.62995055]
[1767376460627,2.44059344,131.06,131.04,19.77451335]
[1767376461493,2.44059344,131.05,131.03,0.69681909]
[1767376461641,2.44059344,131.06,131.04,7.63084443]
[1767376461950,2.44059344,131.06,131.05,7.63067531]
[1767376462352,2.44059344,131.06,131.03,0.69681909]
[1767376464329,2.44059344,131.06,131.04,0.69681909]
[1767376464627,2.44059344,131.05,131.03,0.69681909]
[1767376465244,2.54440706,131.05,131.02,26.71255409]
[1767376465430,2.44059344,131.05,131.02,27.40937318]
[1767376465630,2.44059344,131.05,131.03,0.69681909]
[1767376466748,2.44059344,131.05,131.04,8.32807672]
[1767376466940,2.44059344,131.06,131.04,8.32807672]
[1767376471354,2.53959344,131.06,131.03,7.63184003]
[1767376473058,7.62794085,131.1,131.03,27.40680267]
[1767376473259,8.35013837,131.13,131.04,3.13595599]
[1767376473448,8.35013837,131.13,131.05,27.40272614]
[1767376473449,2.44059344,131.09,131.05,27.40272614]
[1767376473644,2.44059344,131.08,131.06,0.69536255]
[1767376473844,2.44059344,131.09,131.06,0.69536255]
[1767376474159,2.44059344,131.08,131.06,0.69536255]
[1767376474458,2.44059344,131.11,131.06,0.69536255]
[1767376474657,2.44059344,131.08,131.06,0.69536255]
[1767376474960,2.44059344,131.08,131.06,8.3253905]
[1767376475738,2.44059344,131.09,131.07,0.69536255]
[1767376476542,3.81578317,131.1,131.07,0.69536255]
[1767376476747,21.54626941,131.13,131.07,0.69536255]
[1767376476951,3.81578317,131.11,131.07,0.69536255]
[1767376477155,3.81578317,131.11,131.08,7.62892889]
[1767376477763,3.81578317,131.1,131.08,7.62892889]
[1767376478575,3.81578317,131.1,131.09,0.69536255]
[1767376478776,7.62665199,131.12,131.09,0.69536255]
[1767376479074,3.81578317,131.1,131.07,7.62951094]
[1767376479955,3.81578317,131.1,131.08,0.69536255]
[1767376481275,3.81578317,131.1,131.08,8.32414455]
[1767376483162,3.81578317,131.11,131.08,8.32414455]
[1767376483363,3.81578317,131.11,131.06,23.58637843]
[1767376484452,14.76202478,131.16,131.06,23.58637843]
[1767376484453,7.62485703,131.15,131.1,0.69536255]
[1767376484650,14.61519224,131.14,131.1,0.69536255]
[1767376484845,7.62485703,131.15,131.11,0.69536255]
[1767376484846,3.81578317,131.15,131.11,0.69536255]
[1767376485478,13.92,131.17,131.13,0.69536255]
[1767376485479,17.73578317,131.17,131.13,0.69536255]
[1767376486371,13.92,131.17,131.13,0.69536255]
[1767376486579,0.2,131.19,131.15,0.69536255]
[1767376486781,9.49584298,131.18,131.15,0.69536255]
[1767376486954,3.81578317,131.18,131.15,0.69536255]
[1767376487275,0.2,131.19,131.15,0.69536255]
[1767376487471,9.49408573,131.18,131.15,0.69536255]
[1767376487771,3.81578317,131.18,131.15,0.69536255]
[1767376488076,7.82264942,131.19,131.15,0.69536255]
[1767376488256,8.92656119,131.18,131.15,0.69536255]
[1767376488461,3.81578317,131.18,131.15,0.69536255]
[1767376488775,3.81578317,131.18,131.15,8.32014799]
[1767376489371,4.01578317,131.19,131.16,0.69536255]
[1767376489574,0.2,131.19,131.16,0.69536255]
[1767376489965,5.30797194,131.19,131.16,0.69536255]
[1767376490754,5.30797194,131.19,131.16,8.31934914]
[1767376491268,5.30797194,131.19,131.16,7.62398659]
[1767376491576,9.12375511,131.19,131.16,7.62398659]
[1767376491776,0.2,131.19,131.16,7.59481074]
[1767376491970,4.01578317,131.19,131.16,7.59481074]
[1767376492580,4.01578317,131.19,131.16,7.56522971]
[1767376493583,4.01578317,131.19,131.15,7.62458464]
[1767376493884,3.81578317,131.18,131.16,0.69536255]
[1767376494058,3.81578317,131.18,131.15,7.62458464]
[1767376494377,3.85210353,131.17,131.14,7.62527184]
[1767376494573,3.81578317,131.17,131.14,7.62527184]
[1767376494755,4.05210353,131.19,131.15,7.62471817]
[1767376494960,4.05210353,131.19,131.15,11.44050134]
[1767376495263,4.01578317,131.19,131.15,11.44050134]
[1767376495466,4.01578317,131.19,131.15,7.62471817]
[1767376495655,4.05210353,131.19,131.15,7.62471817]
[1767376496464,3.85210353,131.17,131.14,7.59619507]
[1767376496663,3.85210353,131.16,131.14,7.55987471]
[1767376496851,3.85210353,131.16,131.12,13.92]
[1767376496852,3.81578317,131.15,131.11,19.76251327]
[1767376497053,3.81578317,131.15,131.12,7.62626485]
[1767376497758,3.81578317,131.17,131.12,4.51114572]
[1767376498678,14.12,131.19,131.12,4.51114572]
[1767376498999,3.81578317,131.17,131.12,4.51114572]
[1767376499184,3.81578317,131.17,131.13,7.62601998]
[1767376500481,3.81578317,131.16,131.13,7.62601998]
[1767376500679,7.62314159,131.18,131.1,0.681112]
[1767376500680,3.81578317,131.14,131.1,0.681112]
[1767376500976,3.81578317,131.13,131.11,0.681112]
[1767376501579,3.81578317,131.13,131.1,7.62742519]
[1767376501872,3.81578317,131.12,131.09,7.62808262]
[1767376502388,3.81578317,131.1,131.08,7.62892889]
[1767376502779,7.62616176,131.13,131.08,7.62892889]
[1767376502960,3.81578317,131.1,131.08,7.62892889]
[1767376503285,3.81578317,131.1,131.08,0.681112]
[1767376504683,3.81578317,131.1,131.07,21.54945538]
[1767376505089,7.62688313,131.12,131.08,7.62884639]
[1767376505383,3.81578317,131.13,131.09,0.681112]
[1767376505783,3.81578317,131.14,131.09,0.681112]
[1767376506096,3.81578317,131.14,131.1,0.681112]
[1767376506259,3.81578317,131.13,131.12,0.681112]
[1767376507401,3.81578317,131.14,131.12,0.681112]
[1767376507567,3.81578317,131.13,131.12,0.681112]
[1767376509384,3.81578317,131.13,131.11,7.62718328]
[1767376509990,3.81578317,131.13,131.12,0.681112]
[1767376510688,3.81578317,131.14,131.12,0.681112]
[1767376511472,7.62445782,131.16,131.12,8.3077086]
[1767376511674,3.81578317,131.14,131.12,8.3077086]
[1767376513097,3.81578317,131.13,131.12,0.681112]
[1767376513305,3.81578317,131.13,131.11,7.62704631]
[1767376513671,4.48536877,131.13,131.11,7.62704631]
[1767376514104,0.6695856,131.13,131.11,7.62704631]
[1767376514398,4.49689517,131.14,131.11,7.62704631]
[1767376514896,14.601112,131.17,131.12,7.62646516]
[1767376515099,3.91478317,131.16,131.12,7.62646516]
[1767376515272,3.81578317,131.15,131.12,7.62646516]
[1767376515589,3.81578317,131.15,131.12,26.69296912]
[1767376515780,3.81578317,131.15,131.12,27.37408112]
[1767376516179,3.91478317,131.16,131.12,27.37408112]
[1767376516385,0.2,131.19,131.14,0.681112]
[1767376516686,0.2,131.19,131.16,0.681112]
[1767376517273,0.2,131.19,131.17,0.681112]
[1767376518300,4.01578317,131.19,131.17,0.681112]
[1767376519700,0.2,131.19,131.16,7.62371638]
[1767376519887,0.67529088,131.18,131.14,4.49689517]
[1767376520196,0.2,131.19,131.13,19.06423643]
[1767376520197,3.92054607,131.17,131.13,19.06423643]
[1767376520785,3.81578317,131.17,131.14,0.681112]
[1767376520971,0.67529088,131.17,131.13,7.62601998]
[1767376521173,3.81578317,131.15,131.13,8.30713198]
[1767376521368,3.81578317,131.16,131.13,8.30713198]
[1767376521697,3.81578317,131.16,131.14,0.681112]
[1767376523797,7.62372039,131.17,131.14,0.681112]
[1767376524001,3.81578317,131.16,131.14,0.681112]
[1767376524570,3.81578317,131.16,131.12,8.30771358]
[1767376524796,0.1047629,131.15,131.12,7.62660158]
[1767376525194,3.92054607,131.15,131.12,7.62660158]
[1767376525601,3.81578317,131.15,131.12,8.30771358]
[1767376526001,3.81578317,131.15,131.13,0.681112]
[1767376527309,3.81578317,131.15,131.13,8.30695938]
[1767376527510,3.81578317,131.16,131.13,8.30695938]
[1767376529694,3.81578317,131.15,131.13,8.30695938]
[1767376531286,33.17701526,131.19,131.13,3.81578317]
[1767376531287,3.81578317,131.18,131.13,3.81578317]
[1767376531494,0.66340796,131.14,131.11,26.69418717]
[1767376531705,3.81578317,131.15,131.11,26.69418717]
[1767376531892,3.81578317,131.15,131.12,0.65867803]
[1767376533112,3.81578317,131.15,131.13,0.65867803]
[1767376534415,3.81578317,131.16,131.13,8.28456945]
[1767376534615,5.69462057,131.15,131.13,8.28456945]
[1767376534811,0.65854892,131.15,131.13,7.62589142]
[1767376535397,0.65854892,131.15,131.11,26.69418717]
[1767376535707,4.47433209,131.15,131.11,26.69418717]
[1767376536618,3.09886249,131.15,131.11,26.69418717]
[1767376537815,2.44031357,131.15,131.12,0.65867803]
[1767376538204,2.44031357,131.15,131.13,7.62601998]
[1767376539588,0.18231356,131.14,131.11,7.6267969]
[1767376539804,0.65378657,131.13,131.11,7.43787943]
[1767376540007,3.09410014,131.13,131.11,7.43787943]
[1767376540316,3.09410014,131.13,131.1,7.62776506]
[1767376540901,0.55378657,131.12,131.1,7.62776506]
[1767376541093,2.99410014,131.12,131.1,7.62776506]
[1767376542015,2.44031357,131.12,131.1,8.28644309]
[1767376542516,2.44031357,131.13,131.11,0.65867803]
[1767376542705,2.44031357,131.14,131.11,0.65867803]
[1767376542907,10.82717694,131.13,131.11,0.65867803]
[1767376543119,2.44031357,131.13,131.11,0.65867803]
[1767376543612,2.54381596,131.13,131.1,7.62776506]
[1767376543822,0.10350239,131.13,131.1,7.62776506]
[1767376544126,2.54381596,131.13,131.1,7.62776506]
[1767376544717,2.54381596,131.13,131.1,26.69717772]
[1767376544908,2.44031357,131.13,131.11,0.65867803]
[1767376546620,2.44031357,131.13,131.11,8.28581105]
[1767376546917,7.62396039,131.17,131.12,0.65867803]
[1767376547100,10.82592897,131.16,131.12,0.62980583]
[1767376547296,13.26624254,131.15,131.12,0.62980583]
[1767376547492,2.44031357,131.15,131.12,0.62980583]
[1767376548327,2.44031357,131.16,131.13,7.62601998]
[1767376548502,10.82911731,131.15,131.13,7.62601998]
[1767376548702,2.44031357,131.17,131.13,7.62601998]
[1767376548894,10.82794913,131.16,131.13,7.62601998]
[1767376549097,2.44031357,131.17,131.13,27.34974796]
[1767376549299,10.82907942,131.16,131.14,0.65867803]
[1767376549501,2.64031357,131.19,131.14,0.65867803]
[1767376549727,10.82971765,131.18,131.15,0.65867803]
[1767376549905,2.44031357,131.18,131.15,0.65867803]
[1767376550218,2.44031357,131.18,131.14,13.92]
[1767376550219,2.44031357,131.18,131.16,8.28295372]
[1767376550520,2.44031357,131.18,131.16,8.25384854]
[1767376550823,2.64031357,131.19,131.16,8.25384854]
[1767376551721,2.64031357,131.19,131.15,8.28353506]
[1767376552021,2.64031357,131.19,131.15,27.34567764]
[1767376552203,2.64031357,131.19,131.16,0.65867803]
[1767376552403,2.64031357,131.19,131.15,26.68699961]
[1767376552603,2.64031357,131.19,131.15,27.34567764]
[1767376553104,0.299,131.2,131.16,0.65867803]
[1767376553311,2.64031357,131.2,131.16,0.65867803]
[1767376553701,0.2,131.2,131.16,0.65867803]
[1767376554023,2.64031357,131.2,131.17,7.62369444]
[1767376554519,0.2,131.2,131.18,0.65867803]
[1767376554721,1e-08,131.2,131.18,0.65867803]
[1767376554923,13.92,131.22,131.17,7.62369444]
[1767376554924,2.44031357,131.25,131.21,0.65867803]
[1767376555126,5.12473354,131.24,131.21,0.65867803]
[1767376555803,5.12473354,131.24,131.22,8.27946754]
[1767376556006,5.12473354,131.24,131.23,0.65867803]
[1767376556336,2.44031357,131.27,131.23,0.65867803]
[1767376556828,0.86340796,131.28,131.23,0.65867803]
[1767376557024,2.64031357,131.28,131.24,0.65867803]
[1767376558307,0.2,131.28,131.25,8.27772564]
[1767376560912,0.2,131.28,131.25,27.32534468]
[1767376561116,0.2,131.28,131.25,29.76565825]
[1767376561415,0.2,131.28,131.25,27.32534468]
[1767376561927,0.2,131.31,131.27,0.72212263]
[1767376561928,0.88624252,131.31,131.27,0.72212263]
[1767376562109,0.2,131.31,131.28,0.66734121]
[1767376562309,0.2,131.31,131.26,13.92]
[1767376562310,0.2,131.31,131.27,3.10765478]
[1767376562702,1e-08,131.31,131.29,2.44031357]
[1767376562918,1e-08,131.31,131.28,27.32791403]
[1767376563337,1e-08,131.31,131.28,29.7682276]
[1767376563539,1e-08,131.31,131.28,27.32791403]
[1767376564420,1e-08,131.31,131.29,2.44031357]
[1767376564623,1e-08,131.32,131.3,7.61614623]
[1767376564828,17.84092213,131.33,131.3,8.33826886]
[1767376565023,1e-08,131.33,131.3,29.09682537]
[1767376565330,1e-08,131.33,131.3,26.6565118]
[1767376566627,0.27119193,131.32,131.3,7.61614623]
[1767376566827,0.27119193,131.32,131.29,7.61672633]
[1767376567157,2.44031357,131.31,131.29,0.72212263]
[1767376567320,2.44031357,131.32,131.29,0.69265823]
[1767376568034,2.44031357,131.32,131.29,0.66364818]
[1767376568239,2.71561451,131.33,131.29,0.66364818]
[1767376568428,2.44031358,131.33,131.29,0.66364818]
[1767376569121,2.44031358,131.33,131.29,8.28007882]
[1767376569447,0.68267091,131.32,131.29,7.61643064]
[1767376569945,0.68267091,131.32,131.29,29.09856003]
[1767376570423,0.32908165,131.33,131.29,27.38036909]
[1767376571444,0.32908165,131.33,131.29,7.61643064]
[1767376571445,0.33261753,131.31,131.29,7.61643064]
[1767376571748,1e-08,131.33,131.3,0.72212263]
[1767376571946,0.88624252,131.37,131.3,13.9]
[1767376572246,0.88624252,131.37,131.32,2.44031357]
[1767376572548,2.64031357,131.37,131.33,0.72212263]
[1767376572847,2.44031357,131.36,131.33,0.72212263]
[1767376573241,2.44031357,131.36,131.33,8.3364038]
[1767376573641,0.88267091,131.37,131.33,8.3364038]
[1767376573818,2.44031357,131.36,131.33,8.3364038]
[1767376574326,2.44031357,131.35,131.33,0.72212263]
[1767376574838,2.44031357,131.36,131.33,0.72212263]
[1767376575048,0.33261753,131.35,131.32,7.61473446]
[1767376575246,0.67917038,131.34,131.31,26.65415182]
[1767376575626,0.33608306,131.33,131.31,7.61556621]
[1767376576027,0.32908164,131.34,131.31,7.61556621]
[1767376576227,2.76939521,131.34,131.31,7.61556621]
[1767376576443,0.68624252,131.36,131.31,27.37660438]
[1767376576751,2.64031357,131.37,131.32,0.72212263]
[1767376576927,2.96939521,131.37,131.32,0.72212263]
[1767376577127,2.44031357,131.36,131.32,0.72212263]
[1767376577350,2.44031357,131.36,131.33,8.33652908]
[1767376578949,0.2,131.37,131.33,26.65042259]
[1767376579129,2.44031357,131.36,131.33,26.65042259]
[1767376579841,2.44031357,131.35,131.33,26.65042259]
[1767376580325,2.44031357,131.34,131.31,7.61536554]
[1767376580527,2.44031357,131.32,131.3,7.61586225]
[1767376581239,26.84281226,131.37,131.28,13.9]
[1767376581240,2.44031357,131.31,131.28,13.9]
[1767376581604,2.44031357,131.32,131.29,0.72212263]
[1767376582940,2.44031357,131.32,131.3,7.61614623]
[1767376583627,2.44031357,131.32,131.3,8.33826886]
[1767376584542,0.2,131.37,131.32,0.72212263]
[1767376584746,0.2,131.37,131.33,0.72212263]
[1767376584947,0.2,131.37,131.35,0.72212263]
[1767376585158,7.61074932,131.4,131.35,0.72212263]
[1767376585159,2.44031357,131.4,131.35,0.72212263]
[1767376585356,2.44031357,131.39,131.35,0.72212263]
[1767376585543,2.44031357,131.37,131.35,0.72212263]
[1767376585950,2.44031357,131.38,131.35,0.72212263]
[1767376586360,2.44031357,131.37,131.35,0.72212263]
[1767376586552,2.44031357,131.37,131.35,8.30577993]
[1767376587135,2.44031357,131.37,131.35,8.27614745]
[1767376587534,2.44031357,131.36,131.34,7.61365883]
[1767376588655,2.44031357,131.37,131.33,26.64997338]
[1767376589038,2.44031357,131.37,131.34,0.68465128]
[1767376589365,2.44031357,131.35,131.33,8.28948361]
[1767376589860,2.44031357,131.34,131.33,7.61440645]
[1767376590048,2.44031357,131.35,131.33,7.61440645]
[1767376590360,2.44031357,131.35,131.32,7.61471575]
[1767376590661,2.44031357,131.35,131.32,8.28979291]
[1767376591362,2.44031357,131.35,131.32,0.67507716]
[1767376592143,2.44031357,131.35,131.33,7.61440544]
[1767376592359,2.44031357,131.35,131.32,8.28980415]
[1767376592852,2.44031357,131.33,131.3,8.29080443]
[1767376593157,2.44031357,131.32,131.3,8.29080443]
[1767376593345,2.44031357,131.33,131.3,8.29080443]
[1767376593547,2.44031357,131.32,131.3,8.29080443]
[1767376594160,2.44031357,131.33,131.31,8.29064337]
[1767376594662,2.49853891,131.33,131.29,26.65757597]
[1767376595158,2.44031357,131.33,131.29,27.33265313]
[1767376597847,2.49853891,131.34,131.29,27.33265313]
[1767376598044,2.49853891,131.36,131.31,0.67507716]
[1767376598245,5.73446909,131.35,131.31,0.67507716]
[1767376598556,3.90055643,131.34,131.3,13.9]
[1767376599060,3.80155643,131.32,131.3,13.9]
[1767376599746,3.90596238,131.33,131.3,13.9]
[1767376599947,3.90596238,131.33,131.31,7.61556621]
[1767376600275,5.10523084,131.32,131.31,7.61556621]
[1767376600444,0.10440595,131.33,131.31,7.61556621]
[1767376600652,3.90055643,131.34,131.31,7.61556621]
[1767376600862,3.80155643,131.33,131.31,7.61556621]
[1767376601173,3.90055643,131.34,131.31,7.61556621]
[1767376603949,3.80155643,131.32,131.28,19.04238191]
[1767376604154,3.80155643,131.33,131.3,7.61611751]
[1767376604682,3.80155643,131.35,131.31,0.67507716]
[1767376605173,7.61208799,131.37,131.32,8.29006345]
[1767376605174,3.80155643,131.34,131.32,8.29006345]
[1767376605347,3.80155643,131.34,131.32,8.26029467]
[1767376606586,7.61199445,131.38,131.32,8.26029467]
[1767376606756,3.80155643,131.34,131.32,7.58521751]
[1767376607151,3.80155643,131.34,131.31,26.6530629]
[1767376607552,3.80155643,131.34,131.31,7.61556621]
[1767376607958,3.80155643,131.34,131.31,8.29064337]
[1767376608777,3.80155643,131.35,131.31,8.29064337]
[1767376609176,3.80155643,131.36,131.32,0.67507716]
[1767376609358,3.80155643,131.37,131.32,4.47663359]
[1767376609556,3.80155643,131.37,131.33,0.67507716]
[1767376610075,3.80155643,131.36,131.33,0.67507716]
[1767376610251,3.80155643,131.35,131.34,0.67507716]
[1767376610453,7.6115086,131.38,131.34,0.67507716]
[1767376610651,3.80155643,131.36,131.34,0.67507716]
[1767376612777,3.80155643,131.36,131.33,7.61405546]
[1767376614499,3.80155643,131.34,131.32,7.61472921]
[1767376614667,3.80155643,131.34,131.33,0.67507716]
[1767376614982,3.80155643,131.35,131.33,0.67507716]
[1767376615185,3.80155643,131.35,131.32,7.61472921]
[1767376615781,3.80155643,131.35,131.31,7.61527545]
[1767376615955,3.80155643,131.34,131.31,7.61527545]
[1767376616359,3.80155643,131.34,131.31,8.29035261]
[1767376616564,3.80155643,131.33,131.31,7.61527545]
[1767376616881,3.80155643,131.33,131.32,0.67507716]
[1767376617180,7.61266747,131.36,131.32,0.67507716]
[1767376617389,3.80155643,131.34,131.32,0.67507716]
[1767376617886,3.80155643,131.33,131.32,0.67507716]
[1767376618271,7.61266747,131.36,131.32,0.67507716]
[1767376618474,3.80155643,131.33,131.32,0.67507716]
[1767376618782,3.80155643,131.34,131.32,0.67507716]
[1767376618987,7.61266747,131.36,131.32,8.2899652]
[1767376619288,14.62299877,131.35,131.33,0.67507716]
[1767376619458,8.92741398,131.34,131.33,0.67507716]
[1767376620987,3.80155643,131.38,131.33,7.61440645]
[1767376621172,3.80155643,131.36,131.33,7.61440645]
[1767376621372,3.80155643,131.36,131.33,8.27569924]
[1767376622065,3.80155643,131.36,131.34,0.66129279]
[1767376622560,3.80155643,131.35,131.33,0.66129279]
[1767376623686,3.80155643,131.35,131.31,8.276859]
[1767376623867,3.80155643,131.34,131.31,8.276859]
[1767376624180,3.80155643,131.34,131.32,0.66129279]
[1767376624561,3.80155643,131.36,131.32,0.66129279]
[1767376624758,7.6117068,131.38,131.31,27.31577454]
[1767376625065,9.49565562,131.37,131.33,0.66129279]
[1767376625266,5.69409919,131.36,131.33,0.66129279]
[1767376625468,3.80155643,131.36,131.33,0.66129279]
[1767376626081,3.80155643,131.36,131.33,8.27535924]
[1767376626788,3.80155643,131.37,131.34,0.66129279]
[1767376626989,5.6945678,131.36,131.34,0.66129279]
[1767376627288,3.80155643,131.35,131.33,8.27565731]
[1767376627789,3.80155643,131.35,131.31,13.9]
[1767376627790,3.80155643,131.35,131.32,7.6146956]
[1767376628085,3.80155643,131.35,131.32,8.27598839]
[1767376628483,5.69563763,131.34,131.32,8.27598839]
[1767376628789,3.80155643,131.35,131.32,8.27598839]
[1767376629684,0.69716816,131.34,131.32,7.6146956]
[1767376629891,3.80155643,131.35,131.32,8.27598839]
[1767376630096,3.80155643,131.35,131.33,0.66129279]
[1767376630384,3.80155643,131.35,131.33,8.27562648]
[1767376630784,3.80155643,131.35,131.33,7.61433369]
[1767376630967,3.80155643,131.35,131.33,8.27562648]
[1767376632289,3.80155643,131.35,131.33,0.66129279]
[1767376632472,5.69867152,131.34,131.33,0.66129279]
[1767376632670,3.80155643,131.35,131.33,0.66129279]
[1767376632989,3.80155643,131.35,131.33,8.27559424]
[1767376633766,3.80155643,131.38,131.34,0.66129279]
[1767376633968,10.82780578,131.37,131.34,0.66129279]
[1767376634192,3.80155643,131.38,131.33,26.65031759]
[1767376634388,4.49872459,131.38,131.33,26.65031759]
[1767376634568,4.49872459,131.38,131.33,27.31161038]
[1767376634768,4.49872459,131.38,131.34,0.66129279]
[1767376635175,3.80155643,131.38,131.34,0.66129279]
[1767376635787,0.69716816,131.41,131.36,0.66129279]
[1767376636001,0.69716816,131.41,131.37,0.66129279]
[1767376636002,4.49872459,131.41,131.37,0.66129279]
[1767376636390,4.49872459,131.41,131.38,7.6115086]
[1767376636907,0.69716816,131.4,131.38,6.7478643]
[1767376638210,0.49716816,131.38,131.36,7.51240618]
[1767376638502,4.29872459,131.38,131.35,7.61324704]
[1767376638693,0.49716816,131.38,131.35,26.64636466]
[1767376641020,3.80155643,131.39,131.35,26.64636466]
[1767376641021,3.80155643,131.39,131.36,0.66129279]
[1767376641709,3.80155643,131.38,131.35,7.61324704]
[1767376641904,3.80155643,131.38,131.35,8.27453983]
[1767376643009,0.39126412,131.37,131.34,7.6138267]
[1767376644712,0.39716816,131.39,131.34,8.27511949]
[1767376644900,3.80155643,131.38,131.36,0.66129279]
[1767376645086,3.80155643,131.38,131.35,7.61296081]
[1767376645285,0.10195187,131.37,131.35,7.61296081]
[1767376646496,4.19282055,131.36,131.32,13.9]
[1767376646716,3.90640142,131.35,131.31,19.69975295]
[1767376647215,3.90640142,131.35,131.32,7.61498629]
[1767376647417,3.90923697,131.33,131.29,19.70518686]
[1767376647606,3.80155643,131.34,131.31,7.61539569]
[1767376647804,3.80155643,131.35,131.31,7.61539569]
[1767376648225,3.80155643,131.36,131.31,30.45586766]
[1767376648511,5.6930047,131.35,131.31,31.11958279]
[1767376648710,3.80155643,131.36,131.31,27.31802636]
[1767376648912,10.81651181,131.35,131.32,0.66371513]
[1767376649119,3.80155643,131.36,131.33,7.61440645]
[1767376649305,10.81686887,131.35,131.33,7.61440645]
[1767376649519,3.80155643,131.36,131.33,7.61440645]
[1767376649722,10.81825011,131.35,131.33,7.61440645]
[1767376649902,3.90055643,131.36,131.33,7.61440645]
[1767376650215,3.80155643,131.39,131.34,0.69911419]
[1767376650416,3.90055643,131.39,131.34,0.69911419]
[1767376650591,3.80155643,131.39,131.35,0.69911419]
[1767376651322,3.80155643,131.39,131.36,7.61266747]
[1767376653235,0.10088583,131.37,131.34,7.61359474]
[1767376653526,3.80155643,131.35,131.33,7.61440645]
[1767376653898,0.10088583,131.37,131.33,8.31352064]
[1767376653899,3.80155643,131.37,131.33,8.31352064]
[1767376654223,3.80155643,131.38,131.34,0.69911419]
[1767376654623,19.31536281,131.4,131.34,0.69911419]
[1767376654624,7.61061167,131.4,131.34,0.69911419]
[1767376654931,4.08913917,131.39,131.34,4.50067062]
[1767376655220,3.80155643,131.39,131.35,0.69911419]
[1767376655421,3.90244226,131.39,131.36,7.61266747]
[1767376655605,4.09104405,131.4,131.36,7.61266747]
[1767376655804,3.80155643,131.39,131.36,7.61266747]
[1767376656204,4.09104405,131.4,131.36,7.61266747]
[1767376656515,13.9,131.41,131.37,0.69911419]
[1767376656516,17.70155643,131.41,131.37,0.69911419]
[1767376657710,17.70155643,131.41,131.38,0.69911419]
[1767376658416,3.80155643,131.41,131.38,0.69911419]
[1767376658728,2.43071612,131.41,131.38,0.69911419]
[1767376659632,2.43071612,131.41,131.38,8.31044254]
[1767376660608,2.43071612,131.4,131.38,0.69911419]
[1767376661118,2.43071612,131.39,131.36,0.69911419]
[1767376661318,2.43071612,131.39,131.37,7.61208799]
[1767376661525,2.43071612,131.4,131.38,0.69911419]
[1767376661712,2.43071612,131.41,131.38,0.69911419]
[1767376662107,2.43071612,131.4,131.38,0.69911419]
[1767376662434,7.60935346,131.42,131.38,8.31042302]
[1767376662610,13.23564994,131.41,131.38,8.31042302]
[1767376662809,2.43071612,131.41,131.38,8.31042302]
[1767376663219,2.43071612,131.41,131.39,0.69911419]
[1767376664150,0.5079575,131.43,131.4,0.69911419]
[1767376664316,0.5079575,131.43,131.41,0.69911419]
[1767376665024,2.93867362,131.43,131.41,0.69911419]
[1767376665430,2.93867362,131.43,131.39,27.33717687]
[1767376665628,3.03955945,131.43,131.39,27.33717687]
[1767376666314,2.43071612,131.42,131.39,7.61073945]
[1767376666919,2.43071612,131.41,131.39,7.61073945]
[1767376667117,2.43071612,131.41,131.38,8.31032934]
[1767376667318,2.43071612,131.4,131.38,7.61121515]
[1767376667830,2.43071612,131.4,131.39,0.69911419]
[1767376668022,2.43071612,131.4,131.38,7.61121515]
[1767376668628,2.43071612,131.41,131.37,19.02966105]